bitfinex/quotes_SOLUSD_20250126
["timestamp","ask_amount","ask_price","bid_price","bid_amount"]
[1737913769218,0.063,256.43,256.41,201.84357977]
[1737913769998,0.063,256.43,256.42,3.8998]
[1737913770400,0.063,256.43,256.42,4.28966764]
[1737913772304,0.063,256.43,256.42,206.13324741]
[1737913772510,0.063,256.43,256.42,205.74337977]
[1737913775209,0.063,256.49,256.42,215.49297977]
[1737913775453,0.063,256.49,256.43,0.3897959]
[1737913777033,0.063,256.49,256.45,20.0]
[1737913777346,0.063,256.49,256.47,3.899]
[1737913778162,0.063,256.49,256.48,0.38979071]
[1737913778345,0.063,256.49,256.48,202.23337048]
[1737913778542,0.063,256.49,256.48,201.84357977]
[1737913788953,5.39469954,256.49,256.48,201.84357977]
[1737913789134,5.39469954,256.49,256.48,67.14357977]
[1737913794047,0.063,256.49,256.48,201.84357977]
[1737913804084,0.063,256.54,256.53,20.4865]
[1737913804257,12.24931542,256.63,256.53,20.4865]
[1737913804258,6.12465771,256.63,256.59,1.0]
[1737913804467,6.12465771,256.63,256.6,44.16643681]
[1737913804665,6.12465771,256.63,256.62,20.0]
[1737913805276,6.12465771,256.63,256.62,221.84347977]
[1737913805487,6.12465771,256.63,256.62,225.74027977]
[1737913808090,0.063,256.63,256.62,225.74027977]
[1737913814635,0.063,256.63,256.62,231.07197977]
[1737913818114,10.3586,256.79,256.65,20.0]
[1737913818411,10.3586,256.79,256.66,0.38943261]
[1737913818907,0.04,256.77,256.69,20.0]
[1737913819109,0.04,256.77,256.7,0.38941838]
[1737913819620,0.04,256.77,256.7,202.23289815]
[1737913819779,0.04,256.77,256.7,201.84347977]
[1737913819985,0.04,256.77,256.71,3.8954]
[1737913820308,0.04,256.77,256.72,0.38939616]
[1737913821401,5.33169954,256.74,256.71,201.84347977]
[1737913823109,5.33169954,256.74,256.72,0.3894494]
[1737913824011,5.33169954,256.76,256.72,0.3894494]
[1737913826198,9.22639954,256.76,256.72,0.3894494]
[1737913826395,9.22639954,256.76,256.71,67.14357977]
[1737913827994,9.22639954,256.76,256.71,201.84357977]
[1737913828311,3.8951,256.73,256.71,201.84357977]
[1737913828700,5.33169954,256.72,256.71,201.84357977]
[1737913829812,5.33169954,256.72,256.63,67.14357977]
[1737913830006,5.33169954,256.67,256.63,67.14357977]
[1737913830725,9.22769954,256.67,256.63,67.14357977]
[1737913831509,5.33169954,256.67,256.63,67.14357977]
[1737913831814,9.22769954,256.67,256.63,67.14357977]
[1737913832394,5.33169954,256.65,256.63,67.14357977]
[1737913832794,5.33169954,256.67,256.63,67.14357977]
[1737913833900,9.22779954,256.67,256.63,67.14357977]
[1737913834711,5.33169954,256.65,256.63,67.14357977]
[1737913841909,5.33169954,256.67,256.63,67.14357977]
[1737913843511,23.776884,256.66,256.62,0.03]
[1737913843718,5.33169954,256.63,256.62,0.03]
[1737913845006,9.22829954,256.63,256.62,0.03]
[1737913846623,5.33169954,256.63,256.62,0.03]
[1737913846917,5.33169954,256.65,256.62,0.03]
[1737913847618,3.9591,256.67,256.62,0.03]
[1737913847619,5.33169954,256.63,256.62,0.03]
[1737913850631,29.10858354,256.63,256.62,0.03]
[1737913857132,33.00518354,256.63,256.62,0.03]
[1737913857805,33.06818354,256.63,256.62,0.03]
[1737913861708,33.06818354,256.63,256.53,205.74167977]
[1737913861912,5.33169954,256.62,256.53,205.74167977]
[1737913862250,0.063,256.63,256.55,1.6647]
[1737913862433,0.063,256.63,256.56,0.38964068]
[1737913863730,0.063,256.63,256.56,202.23322045]
[1737913864033,0.063,256.63,256.57,3.8975]
[1737913864337,0.063,256.63,256.58,0.38962121]
[1737913865129,0.063,256.63,256.59,3.8972]
[1737913865315,0.063,256.63,256.6,0.38962651]
[1737913866423,0.063,256.63,256.61,3.8969]
[1737913868837,0.063,256.63,256.62,0.38961779]
[1737913870322,0.063,256.63,256.62,222.23319756]
[1737913870624,0.063,256.63,256.62,221.84357977]
[1737913870937,0.063,256.63,256.62,228.23217977]
[1737913871131,0.063,256.63,256.62,229.74457977]
[1737913879529,0.063,256.63,256.62,221.84357977]
[1737913880031,0.063,256.63,256.62,201.84357977]
[1737913880925,0.063,256.63,256.62,67.14357977]
[1737913881430,0.063,256.63,256.62,67.17357977]
[1737913898296,0.063,256.63,256.62,71.07037977]
[1737913898566,0.063,256.63,256.62,71.46000456]
[1737913903059,0.063,256.63,256.62,206.16000456]
[1737913903259,0.063,256.63,256.62,205.77037977]
[1737913905973,0.063,256.63,256.62,201.87357977]
[1737913906762,0.063,256.63,256.62,67.17357977]
[1737913916065,3.9596,256.63,256.62,67.17357977]
[1737913917877,3.9596,256.63,256.62,0.03]
[1737913919185,0.063,256.63,256.62,0.03]
[1737913923398,0.063,256.63,256.62,0.41962452]
[1737913923893,0.063,256.63,256.62,202.26320429]
[1737913924082,0.063,256.63,256.62,201.87357977]
[1737913924591,0.063,256.63,256.62,205.77037977]
[1737913925595,0.063,256.67,256.65,20.0]
[1737913925778,0.063,256.67,256.66,0.38949981]
[1737913926133,0.063,256.67,256.66,8.10139981]
[1737913926300,0.063,256.67,256.66,209.94497958]
[1737913926477,0.063,256.67,256.66,237.22856377]
[1737913926679,6.12465771,256.69,256.68,20.0]
[1737913926877,6.12465771,256.69,256.68,20.38946985]
[1737913927998,6.12465771,256.69,256.68,24.28536985]
[1737913928515,0.063,256.76,256.69,20.0]
[1737913928803,0.063,256.76,256.7,0.38943033]
[1737913930078,0.063,256.76,256.71,3.8954]
[1737913930283,0.063,256.76,256.72,0.3894031]
[1737913930808,0.063,256.76,256.72,202.23298287]
[1737913930990,0.063,256.76,256.72,201.84357977]
[1737913931204,0.063,256.76,256.73,3.8951]
[1737913931421,0.063,256.76,256.74,0.38940537]
[1737913933399,5.33169954,256.75,256.72,201.84357977]
[1737913933591,5.33169954,256.73,256.72,67.14357977]
[1737913933903,5.33169954,256.73,256.67,134.7]
[1737913934196,5.33169954,256.71,256.67,134.7]
[1737913934399,5.33169954,256.73,256.68,0.38952235]
[1737913934593,5.33169954,256.75,256.68,0.38952235]
[1737913935379,5.33169954,256.75,256.69,3.8957]
[1737913935607,5.33169954,256.75,256.7,0.38947714]
[1737913936212,5.33169954,256.73,256.67,134.7]
[1737913936415,5.33169954,256.71,256.67,134.7]
[1737913938188,5.33169954,256.73,256.68,0.38954256]
[1737913938404,5.33169954,256.75,256.68,0.38954256]
[1737913939299,5.33169954,256.69,256.66,67.14357977]
[1737913939501,5.33169954,256.67,256.66,67.14357977]
[1737913941115,5.33169954,256.69,256.66,67.14357977]
[1737913942698,5.33169954,256.69,256.66,67.17357977]
[1737913943217,5.33169954,256.71,256.66,67.17357977]
[1737913943428,5.33169954,256.73,256.66,71.06967977]
[1737913943731,5.33169954,256.73,256.67,0.38956971]
[1737913944088,5.39469954,256.75,256.67,0.38956971]
[1737913944424,5.33169954,256.73,256.68,3.8959]
[1737913944595,5.33169954,256.73,256.69,0.38950109]
[1737913944799,0.063,256.75,256.69,202.23308086]
[1737913945016,0.063,256.75,256.69,201.84357977]
[1737913946222,5.39469954,256.75,256.7,0.38945592]
[1737913946390,5.39469954,256.75,256.7,4.28495592]
[1737913947317,5.33169954,256.71,256.69,201.84357977]
[1737913948217,5.33169954,256.73,256.69,201.84357977]
[1737913948518,5.39469954,256.75,256.69,201.84357977]
[1737913949024,4.89469954,256.75,256.69,201.84357977]
[1737913950226,5.33169954,256.73,256.69,201.84357977]
[1737913950596,5.33169954,256.73,256.69,67.14357977]
[1737913952820,0.063,256.76,256.7,0.38951395]
[1737913954226,0.063,256.76,256.71,3.8954]
[1737913954434,1.40354696,256.75,256.71,3.8954]
[1737913954595,1.40354696,256.75,256.72,0.38946557]
[1737913955357,6.7352465,256.75,256.71,3.8954]
[1737913955629,6.7352465,256.75,256.7,4.28495597]
[1737913955829,1.40354696,256.74,256.7,4.28495597]
[1737913956130,1.40354696,256.74,256.7,0.38945597]
[1737913956298,5.33169954,256.71,256.69,67.14357977]
[1737913957135,5.33169954,256.71,256.66,0.03]
[1737913957503,5.33169954,256.73,256.66,0.03]
[1737913957804,5.33169954,256.73,256.66,0.41955555]
[1737913958004,5.33169954,256.73,256.66,4.31565555]
[1737913958300,5.33169954,256.69,256.66,0.03]
[1737913958624,5.33169954,256.71,256.66,0.03]
[1737913961027,1.40610508,256.7,256.66,0.03]
[1737913962206,1.40610508,256.69,256.66,0.03]
[1737913962732,5.33169954,256.68,256.66,0.03]
[1737913963428,1.40610508,256.67,256.66,0.03]
[1737913975641,1.40610508,256.67,256.66,201.87357977]
[1737913976435,1.40610508,256.67,256.66,205.76977977]
[1737913977736,0.063,256.75,256.66,205.76977977]
[1737913977911,0.063,256.75,256.68,3.8959]
[1737913978715,0.063,256.75,256.69,0.38950833]
[1737913979229,1.41024952,256.74,256.69,0.38950833]
[1737913979824,6.74194906,256.74,256.68,3.8959]
[1737913980355,6.74194906,256.74,256.66,205.76957977]
[1737913981011,1.41024952,256.73,256.66,205.76957977]
[1737913981634,5.33169954,256.72,256.66,205.76957977]
[1737913982136,5.33169954,256.72,256.66,201.87357977]
[1737913982368,5.33169954,256.7,256.66,201.87357977]
[1737913983323,5.33169954,256.7,256.66,67.17357977]
[1737913983724,5.33169954,256.68,256.66,0.03]
[1737913985531,1.41024952,256.67,256.66,0.03]
[1737913993651,1.41024952,256.67,256.66,0.41954613]
[1737913994137,1.41024952,256.67,256.66,0.03]
[1737913995873,5.33169954,256.74,256.66,0.03]
[1737913996243,5.33169954,256.72,256.66,0.03]
[1737913996557,5.33169954,256.74,256.66,0.03]
[1737913997250,5.33169954,256.72,256.66,0.03]
[1737913997837,1.40954721,256.73,256.67,4.28554026]
[1737913998243,1.40954721,256.73,256.67,3.896]
[1737913998451,1.40954721,256.73,256.67,4.28553088]
[1737913999053,1.40954721,256.72,256.67,4.28553088]
[1737913999259,6.74124675,256.72,256.67,3.896]
[1737913999560,1.40954721,256.72,256.67,4.28552662]
[1737914000164,1.40954721,256.72,256.67,0.38952662]
[1737914000165,6.74124675,256.72,256.67,0.38952662]
[1737914000372,5.33169954,256.7,256.66,201.87357977]
[1737914002139,1.40954721,256.69,256.66,201.87357977]
[1737914003660,1.40954721,256.68,256.66,201.87357977]
[1737914004343,1.40954721,256.68,256.66,205.76967977]
[1737914005065,1.40954721,256.68,256.67,0.38954001]
[1737914005272,1.40954721,256.68,256.66,201.87357977]
[1737914005450,1.40954721,256.67,256.66,201.87357977]
[1737914007059,1.40954721,256.67,256.66,67.17357977]
[1737914007969,6.74124675,256.67,256.66,67.17357977]
[1737914010162,6.74124675,256.67,256.66,0.03]
[1737914011267,1.40954721,256.67,256.66,0.03]
[1737914014382,6.74124675,256.67,256.66,0.03]
[1737914015481,1.40954721,256.67,256.66,0.03]
[1737914018411,5.30554721,256.67,256.66,0.03]
[1737914022471,29.08243121,256.67,256.66,0.03]
[1737914036198,30.08243121,256.67,256.66,0.03]
[1737914036706,32.78243121,256.67,256.66,0.03]
[1737914039293,8.00554721,256.67,256.66,0.03]
[1737914039687,31.78243121,256.67,256.66,0.03]
[1737914041106,6.74124675,256.67,256.66,0.03]
[1737914041284,1.40954721,256.67,256.66,0.03]
[1737914043415,5.33169954,256.69,256.66,0.03]
[1737914044314,5.33169954,256.67,256.66,0.03]
[1737914046718,5.33169954,256.71,256.66,0.03]
[1737914048218,5.33169954,256.69,256.66,0.03]
[1737914048591,5.33169954,256.69,256.66,201.87357977]
[1737914049412,5.33169954,256.67,256.66,201.87357977]
[1737914049720,29.10858354,256.67,256.66,201.87357977]
[1737914050407,33.00458354,256.67,256.66,201.87357977]
[1737914050712,33.00458354,256.67,256.66,0.03]
[1737914057707,9.22769954,256.67,256.66,0.03]
[1737914057910,5.33169954,256.67,256.66,0.03]
[1737914058619,5.33169954,256.69,256.66,0.03]
[1737914059202,5.33169954,256.67,256.66,0.03]
[1737914060007,33.00458354,256.67,256.66,0.03]
[1737914062824,35.00458354,256.67,256.66,0.03]
[1737914063046,20.0,256.63,256.62,0.03]
[1737914063205,70.4353817,256.63,256.62,0.03]
[1737914064139,71.4353817,256.63,256.62,0.03]
[1737914064710,75.3319817,256.63,256.62,0.03]
[1737914064912,81.45663941,256.63,256.62,0.03]
[1737914065223,1.0,256.58,256.56,67.14357977]
[1737914065535,29.10858354,256.57,256.48,209.71877977]
[1737914065718,5.33169954,256.52,256.48,209.71877977]
[1737914066608,5.33169954,256.5,256.44,134.7]
[1737914069416,5.33169954,256.52,256.44,134.7]
[1737914069726,3.8977,256.56,256.45,0.38990066]
[1737914069727,25.33169954,256.54,256.45,0.38990066]
[1737914069936,25.33169954,256.54,256.46,3.8992]
[1737914070317,5.33169954,256.52,256.46,3.8992]
[1737914072537,5.33169954,256.52,256.46,205.74277977]
[1737914073188,5.33169954,256.52,256.46,201.84357977]
[1737914073316,5.33169954,256.5,256.46,201.84357977]
[1737914073817,9.23039954,256.5,256.46,201.84357977]
[1737914076141,5.33169954,256.52,256.46,201.84357977]
[1737914077945,5.33169954,256.54,256.46,205.74277977]
[1737914078333,5.33169954,256.52,256.46,201.84357977]
[1737914079720,9.22999954,256.52,256.46,201.84357977]
[1737914083247,5.33169954,256.5,256.46,201.84357977]
[1737914083741,5.33169954,256.48,256.45,0.03]
[1737914083979,5.33169954,256.46,256.45,0.03]
[1737914085252,9.23089954,256.46,256.45,0.03]
[1737914087046,33.00778354,256.46,256.45,0.03]
[1737914095550,25.776884,256.44,256.43,0.03]
[1737914095752,33.80858354,256.44,256.43,0.03]
[1737914096129,21.0,256.41,256.4,0.03]
[1737914096342,26.33169954,256.41,256.4,0.03]
[1737914097230,55.00858354,256.41,256.4,0.03]
[1737914099958,54.00858354,256.41,256.4,0.03]
[1737914100154,55.00858354,256.41,256.4,0.03]
[1737914100356,43.776884,256.38,256.37,0.03]
[1737914100663,49.10858354,256.38,256.37,0.03]
[1737914104384,49.10858354,256.38,256.31,201.87357977]
[1737914104385,23.776884,256.33,256.31,0.03]
[1737914104657,29.10858354,256.32,256.31,0.03]
[1737914106662,33.00988354,256.32,256.31,0.03]
[1737914107534,33.00988354,256.32,256.29,0.03]
[1737914107733,30.10858354,256.3,256.29,0.03]
[1737914108552,29.10858354,256.3,256.29,0.03]
[1737914109163,33.01018354,256.3,256.29,0.03]
[1737914109538,5.33169954,256.3,256.29,0.03]
[1737914119668,29.10858354,256.3,256.29,0.03]
[1737914121351,20.0,256.26,256.23,67.17357977]
[1737914121568,29.10858354,256.24,256.23,0.03]
[1737914122558,33.01108354,256.24,256.23,0.03]
[1737914123970,5.33169954,256.24,256.23,0.03]
[1737914124177,5.33169954,256.27,256.23,0.03]
[1737914125047,5.33169954,256.25,256.23,0.03]
[1737914126485,23.776884,256.24,256.23,0.03]
[1737914128164,46.10368216,256.24,256.23,0.03]
[1737914132062,43.776884,256.21,256.2,0.01396873]
[1737914132274,49.10858354,256.21,256.2,0.01396873]
[1737914132877,53.01158354,256.21,256.2,0.01396873]
[1737914135579,5.33169954,256.21,256.2,0.01396873]
[1737914135890,5.33169954,256.23,256.2,0.01396873]
[1737914143588,5.33169954,256.21,256.2,0.01396873]
[1737914149028,33.01158354,256.21,256.2,0.01396873]
[1737914149502,5.33169954,256.21,256.2,0.01396873]
[1737914152400,9.23469954,256.21,256.2,0.01396873]
[1737914159201,33.01158354,256.21,256.2,0.01396873]
[1737914160021,5.33169954,256.21,256.2,0.01396873]
[1737914173621,5.33169954,256.21,256.2,67.1575485]
[1737914173800,0.063,256.23,256.2,67.1575485]
[1737914175021,0.063,256.23,256.2,71.0607485]
[1737914177498,0.063,256.23,256.2,71.45099255]
[1737914178017,0.063,256.23,256.21,1.5037]
[1737914178919,0.063,256.23,256.22,3.9028]
[1737914179502,0.063,256.23,256.22,205.74637977]
[1737914202536,0.063,256.23,256.22,205.77637977]
[1737914207347,0.063,256.23,256.22,201.87357977]
[1737914207647,0.063,256.23,256.22,67.17357977]
[1737914210128,23.839884,256.23,256.22,67.17357977]
[1737914215252,23.839884,256.23,256.22,0.03]
[1737914217647,0.063,256.23,256.22,0.03]
[1737914221155,0.063,256.23,256.22,67.17357977]
[1737914225358,0.063,256.23,256.22,71.07637977]
[1737914225854,0.063,256.23,256.22,219.3328]
[1737914226662,0.063,256.23,256.22,225.9696]
[1737914227051,0.0001,256.23,256.22,225.9696]
[1737914227652,0.0001,256.23,256.22,227.4791]
[1737914228864,0.0001,256.24,256.22,251.255984]
[1737914229052,0.0001,256.24,256.23,0.39007581]
[1737914229252,0.0001,256.24,256.23,239.56695981]
[1737914229489,0.0001,256.24,256.23,239.176884]
[1737914231348,6.12465771,256.42,256.31,7.9905]
[1737914231556,6.12465771,256.42,256.32,0.38998795]
[1737914232170,6.12465771,256.42,256.32,215.78998795]
[1737914232474,6.12465771,256.42,256.32,215.4]
[1737914232642,6.12465771,256.42,256.34,3.901]
[1737914232866,6.12465771,256.42,256.35,0.38997561]
[1737914233157,5.33169954,256.43,256.35,0.38997561]
[1737914233865,5.33169954,256.43,256.36,3.9007]
[1737914234065,5.33169954,256.43,256.36,4.29067651]
[1737914234967,5.33169954,256.43,256.33,0.38997375]
[1737914235140,5.33169954,256.43,256.34,3.901]
[1737914235344,5.33169954,256.43,256.35,0.38997487]
[1737914235641,5.33169954,256.45,256.35,215.78997487]
[1737914235843,5.33169954,256.45,256.35,215.4]
[1737914237177,5.33169954,256.45,256.37,3.9006]
[1737914237369,5.33169954,256.45,256.38,0.38995824]
[1737914238146,5.33169954,256.45,256.39,3.9003]
[1737914239372,5.33169954,256.43,256.37,219.3004]
[1737914239572,5.33169954,256.45,256.38,0.3899542]
[1737914240167,5.33169954,256.45,256.39,3.9003]
[1737914241960,5.33169954,256.45,256.39,219.3003]
[1737914243977,0.063,256.48,256.39,219.3003]
[1737914244350,0.063,256.48,256.4,8.1962]
[1737914244554,0.063,256.48,256.41,0.38984625]
[1737914245053,0.063,256.48,256.42,3.8998]
[1737914245475,0.063,256.48,256.43,0.38987393]
[1737914246271,0.063,256.48,256.44,3.8995]
[1737914246469,0.063,256.48,256.44,219.2995]
[1737914246673,0.063,256.48,256.45,0.38985695]
[1737914247855,0.063,256.48,256.45,4.28915695]
[1737914249662,0.063,256.48,256.45,3.8993]
[1737914250880,0.063,256.48,256.45,219.2993]
[1737914255882,0.063,256.48,256.45,215.4]
[1737914256064,5.33169954,256.47,256.45,215.4]
[1737914256461,23.776884,256.46,256.41,80.7]
[1737914256791,5.33169954,256.42,256.41,80.7]
[1737914259974,23.776884,256.41,256.35,134.7]
[1737914260297,5.33169954,256.37,256.34,80.7]
[1737914261971,3.68,256.46,256.34,80.7]
[1737914261972,5.33169954,256.35,256.34,80.7]
[1737914263068,23.776884,256.34,256.24,215.43]
[1737914263298,5.33169954,256.32,256.26,3.9021]
[1737914263478,5.33169954,256.32,256.24,215.43]
[1737914263789,5.33169954,256.32,256.24,219.3324]
[1737914269484,5.33169954,256.3,256.24,219.3324]
[1737914273080,5.33169954,256.3,256.24,215.43]
[1737914273494,5.33169954,256.3,256.24,219.3325]
[1737914293141,5.33169954,256.29,256.24,219.3325]
[1737914293308,5.33169954,256.29,256.24,215.43]
[1737914296713,29.10858354,256.31,256.24,215.43]
[1737914298412,33.01008354,256.31,256.24,215.43]
[1737914299212,5.33169954,256.3,256.24,215.43]
[1737914304010,5.33169954,256.32,256.24,219.3325]
[1737914305491,9.23299954,256.32,256.24,219.3325]
[1737914307211,5.33169954,256.3,256.24,215.43]
[1737914307713,5.33169954,256.28,256.24,215.43]
[1737914310304,9.23339954,256.3,256.24,215.43]
[1737914314225,5.33169954,256.3,256.24,219.3325]
[1737914314402,5.33169954,256.3,256.24,215.43]
[1737914316032,9.23329954,256.3,256.24,215.43]
[1737914319728,5.33169954,256.26,256.24,215.43]
[1737914322225,5.33169954,256.26,256.24,80.73]
[1737914323327,23.776884,256.25,256.24,0.03]
[1737914324719,5.33169954,256.26,256.24,0.03]
[1737914325322,23.776884,256.25,256.24,0.03]
[1737914327031,29.10858354,256.25,256.24,0.03]
[1737914330814,30.10858354,256.25,256.24,0.03]
[1737914331129,43.776884,256.23,256.22,0.03]
[1737914331326,70.4353817,256.23,256.22,0.03]
[1737914331935,71.9581817,256.23,256.22,0.03]
[1737914332535,23.776884,256.22,256.2,0.01396873]
[1737914332836,33.01158354,256.21,256.2,0.01396873]
[1737914333535,34.01158354,256.21,256.2,0.01396873]
[1737914337433,33.01158354,256.21,256.2,0.01396873]
[1737914340044,5.33169954,256.21,256.2,0.01396873]
[1737914340337,6.5828,256.23,256.2,0.01396873]
[1737914340338,25.33169954,256.22,256.2,0.01396873]
[1737914340541,5.33169954,256.21,256.2,0.01396873]
[1737914341130,29.10858354,256.21,256.2,0.01396873]
[1737914341332,5.33169954,256.21,256.2,0.01396873]
[1737914342778,5.33169954,256.22,256.2,0.01396873]
[1737914342916,20.0,256.21,256.2,0.01396873]
[1737914343122,43.776884,256.21,256.2,0.01396873]
[1737914344738,5.33169954,256.22,256.2,0.01396873]
[1737914346260,5.33169954,256.22,256.2,80.71396873]
[1737914352946,9.23459954,256.22,256.2,80.71396873]
[1737914358250,5.33169954,256.22,256.2,80.71396873]
[1737914358456,0.063,256.23,256.2,80.71396873]
[1737914360243,0.063,256.23,256.2,215.41396873]
[1737914361847,0.063,256.23,256.21,0.39025246]
[1737914362757,0.063,256.23,256.22,3.9028]
[1737914365749,0.063,256.23,256.22,219.3028]
[1737914377976,0.063,256.23,256.22,219.3328]
[1737914381982,0.063,256.23,256.22,215.43]
[1737914383386,0.063,256.23,256.22,80.73]
[1737914407615,27.742584,256.23,256.22,80.73]
[1737914408615,27.742584,256.23,256.22,0.03]
[1737914410719,20.0,256.21,256.2,0.01396873]
[1737914410907,49.10858354,256.21,256.2,0.01396873]
[1737914411412,25.33169954,256.21,256.2,0.01396873]
[1737914412220,49.10858354,256.21,256.2,0.01396873]
[1737914418221,25.33169954,256.21,256.2,0.01396873]
[1737914418526,20.0,256.21,256.2,0.01396873]
[1737914418699,20.0,256.22,256.2,0.01396873]
[1737914418940,0.063,256.23,256.2,0.01396873]
[1737914420341,0.063,256.23,256.2,215.41396873]
[1737914421231,5.39469954,256.23,256.2,215.41396873]
[1737914421433,5.33169954,256.21,256.2,215.41396873]
[1737914421643,49.10858354,256.21,256.2,215.41396873]
[1737914422520,53.01158354,256.21,256.2,215.41396873]
[1737914423539,33.01158354,256.21,256.2,215.41396873]
[1737914426234,33.01158354,256.21,256.2,0.01396873]
[1737914428006,23.776884,256.2,256.19,0.02396873]
[1737914428217,25.776884,256.2,256.19,6.873e-05]
[1737914428427,44.776884,256.18,256.17,0.03]
[1737914428717,23.776884,256.17,256.16,0.03]
[1737914428925,20.0,256.14,256.05,80.73]
[1737914429125,29.10858354,256.1,256.05,80.73]
[1737914429931,33.01328354,256.1,256.05,80.73]
[1737914430233,33.01328354,256.1,256.05,0.03]
[1737914433230,54.3400817,256.1,256.05,0.03]
[1737914433633,55.3400817,256.1,256.05,0.03]
[1737914435638,54.3400817,256.1,256.05,0.03]
[1737914435937,33.01328354,256.1,256.08,0.03]
[1737914436446,9.23639954,256.1,256.08,0.03]
[1737914438548,5.33169954,256.1,256.08,0.03]
[1737914439039,20.0,256.1,256.08,0.03]
[1737914439424,5.33169954,256.12,256.08,0.03]
[1737914441150,49.10858354,256.1,256.08,0.03]
[1737914443053,70.4353817,256.1,256.08,0.03]
[1737914446954,20.0,256.06,256.05,0.03]
[1737914447159,49.10858354,256.06,256.05,0.03]
[1737914448251,53.01388354,256.06,256.05,0.03]
[1737914449239,31.0,256.04,256.03,0.03]
[1737914449441,40.01169954,256.04,256.03,0.03]
[1737914449641,63.78858354,256.04,256.03,0.03]
[1737914450463,67.69418354,256.04,256.03,0.03]
[1737914451539,23.776884,256.03,256.02,0.03]
[1737914451853,24.776884,256.03,256.02,0.03]
[1737914452156,20.0,255.99,255.98,0.03]
[1737914452359,49.10858354,255.99,255.98,0.03]
[1737914453658,53.01498354,255.99,255.98,0.03]
[1737914455960,74.3417817,255.99,255.98,0.03]
[1737914457260,74.3417817,255.99,255.94,0.03]
[1737914457261,20.0,255.95,255.94,0.03]
[1737914457459,49.10858354,255.95,255.94,0.03]
[1737914457854,20.0,255.91,255.88,215.4]
[1737914458057,29.10858354,255.89,255.88,80.7]
[1737914462058,23.776884,255.84,255.83,0.03]
[1737914462366,29.10858354,255.84,255.83,0.03]
[1737914462670,5.33169954,255.84,255.83,0.03]
[1737914463253,5.33169954,255.86,255.83,0.03]
[1737914464361,5.33169954,255.88,255.83,215.43]
[1737914464756,5.33169954,255.9,255.83,215.43]
[1737914465173,5.33169954,255.9,255.84,0.39078633]
[1737914465770,5.33169954,255.9,255.84,4.29938633]
[1737914466029,5.33169954,255.9,255.84,3.9086]
[1737914466362,5.33169954,255.88,255.84,3.9086]
[1737914468277,5.33169954,255.92,255.84,4.29939635]
[1737914468979,5.33169954,255.92,255.84,3.9086]
[1737914469971,5.33169954,255.92,255.85,0.39076465]
[1737914470176,5.33169954,255.94,255.85,0.39076465]
[1737914470470,23.776884,255.93,255.86,3.9083]
[1737914470770,23.776884,255.93,255.84,215.4]
[1737914470771,5.33169954,255.92,255.84,219.3085]
[1737914470955,5.33169954,255.92,255.84,215.4]
[1737914471377,5.33169954,255.92,255.84,219.3086]
[1737914472064,5.33169954,255.9,255.84,215.4]
[1737914472675,23.776884,255.87,255.84,215.4]
[1737914473972,5.33169954,255.86,255.84,215.4]
[1737914474156,5.33169954,255.86,255.84,80.7]
[1737914475284,23.776884,255.85,255.84,80.7]
[1737914477291,3.9086,255.84,255.83,0.03]
[1737914477467,5.33169954,255.84,255.83,0.03]
[1737914478790,20.0,255.82,255.8,215.4]
[1737914479685,20.0,255.82,255.8,219.3092]
[1737914479858,23.776884,255.85,255.8,219.3092]
[1737914481058,5.33169954,255.86,255.8,219.3092]
[1737914481282,5.33169954,255.86,255.81,6.2874]
[1737914481583,20.0,255.85,255.81,6.2874]
[1737914482379,5.33169954,255.92,255.82,5.85195385]
[1737914482683,20.0,255.89,255.82,221.25195385]
[1737914482980,20.0,255.89,255.82,220.8611]
[1737914483184,20.0,255.89,255.83,0.39078738]
[1737914483585,20.0,255.89,255.84,3.9086]
[1737914485883,20.0,255.89,255.84,219.3086]
[1737914487183,20.0,255.89,255.84,215.4]
[1737914487488,3.9079,255.89,255.84,215.4]